[Event "Titled Tuesday Blitz March 15 Early 2022"]
[White "Sarana, Alexey"]
[Black "Dubov, Daniil"]
[WhiteFideId "24133795"]
[BlackFideId "24126055"]
[WhiteElo "3011"]
[BlackElo "3051"]
[Result "0-1"]
[Round "05"]
[TimeControl "180+1"]
[Date "2022.03.15"]
[WhiteClock "0:00:11"]
[BlackClock "0:00:13"]

1. d4 {[%clk 0:02:56]}  Nf6 {[%clk 0:02:59]} 2. c4 {[%clk 0:02:57]}  c5 {[%clk 0:02:58]} 3. d5 {[%clk 0:02:57]}  b5 {[%clk 0:02:58]} 4. cxb5 {[%clk 0:02:54]}  a6 {[%clk 0:02:59]} 5. bxa6 {[%clk 0:02:55]}  e6 {[%clk 0:02:58]} 6. dxe6 {[%clk 0:02:54]}  fxe6 {[%clk 0:02:58]} 7. g3 {[%clk 0:02:54]}  Bxa6 {[%clk 0:02:57]} 8. Bg2 {[%clk 0:02:55]}  d5 {[%clk 0:02:55]} 9. Nf3 {[%clk 0:02:54]}  Nc6 {[%clk 0:02:55]} 10. O-O {[%clk 0:02:55]}  Be7 {[%clk 0:02:54]} 11. b3 {[%clk 0:02:56]}  e5 {[%clk 0:02:44]} 12. Bb2 {[%clk 0:02:56]}  e4 {[%clk 0:02:44]} 13. Nh4 {[%clk 0:02:55]}  Qd7 {[%clk 0:02:40]} 14. Nc3 {[%clk 0:02:54]}  O-O {[%clk 0:02:39]} 15. Qd2 {[%clk 0:02:41]}  Rae8 {[%clk 0:02:34]} 16. Rac1 {[%clk 0:01:15]}  d4 {[%clk 0:01:18]} 17. Na4 {[%clk 0:01:13]}  Qg4 {[%clk 0:01:18]} 18. Nxc5 {[%clk 0:01:01]}  Qxe2 {[%clk 0:01:17]} 19. Rfd1 {[%clk 0:00:54]}  Qxd2 {[%clk 0:01:02]} 20. Rxd2 {[%clk 0:00:55]}  e3 {[%clk 0:01:03]} 21. fxe3 {[%clk 0:00:54]}  dxe3 {[%clk 0:01:04]} 22. Rdd1 {[%clk 0:00:46]}  Bxc5 {[%clk 0:01:00]} 23. Rxc5 {[%clk 0:00:45]}  e2 {[%clk 0:00:48]} 24. Re1 {[%clk 0:00:45]}  Nb4 {[%clk 0:00:48]} 25. Re5 {[%clk 0:00:13]}  Rxe5 {[%clk 0:00:41]} 26. Bxe5 {[%clk 0:00:14]}  Nc2 {[%clk 0:00:38]} 27. Nf3 {[%clk 0:00:13]}  Nxe1 {[%clk 0:00:27]} 28. Nxe1 {[%clk 0:00:14]}  Ng4 {[%clk 0:00:20]} 29. Bd5+ {[%clk 0:00:13]}  Kh8 {[%clk 0:00:19]} 30. Bf4 {[%clk 0:00:13]}  g5 {[%clk 0:00:15]} 31. Bd2 {[%clk 0:00:14]}  Rf1+ {[%clk 0:00:15]} 32. Kg2 {[%clk 0:00:14]}  Rf2+ {[%clk 0:00:15]} 33. Kh3 {[%clk 0:00:14]}  h5 {[%clk 0:00:15]} 34. Nf3 {[%clk 0:00:13]}  Bc8 {[%clk 0:00:14]} 35. Bc3+ {[%clk 0:00:12]}  Kh7 {[%clk 0:00:14]} 36. Nxg5+ {[%clk 0:00:12]}  Kg6 {[%clk 0:00:13]} 37. Nf3 {[%clk 0:00:12]}  Ne3+ {[%clk 0:00:13]} 38. Kh4 {[%clk 0:00:11]}  Nxd5 {[%clk 0:00:13]} 0-1


[Site "https://www.chess.com"]

[Event "Titled Tuesday Blitz March 15 Early 2022"]
[White "Sarkar, Justin"]
[Black "Johnson, Ben"]
[WhiteFideId "2010011"]
[BlackFideId "2010917"]
[WhiteElo "2038"]
[BlackElo "2214"]
[Result "0-1"]
[Round "05"]
[TimeControl "180+1"]
[Date "2022.03.15"]
[WhiteClock "0:00:03"]
[BlackClock "0:00:07"]

1. d4 {[%clk 0:02:59]}  Nf6 {[%clk 0:02:59]} 2. c4 {[%clk 0:02:58]}  e6 {[%clk 0:02:59]} 3. Nf3 {[%clk 0:02:56]}  d5 {[%clk 0:02:58]} 4. Nc3 {[%clk 0:02:56]}  Bb4 {[%clk 0:02:58]} 5. Qb3 {[%clk 0:02:49]}  c5 {[%clk 0:02:57]} 6. dxc5 {[%clk 0:02:46]}  Na6 {[%clk 0:02:53]} 7. Bg5 {[%clk 0:02:41]}  dxc4 {[%clk 0:02:25]} 8. Qxc4 {[%clk 0:02:38]}  h6 {[%clk 0:02:24]} 9. Rd1 {[%clk 0:02:25]}  Qa5 {[%clk 0:02:13]} 10. Bd2 {[%clk 0:01:57]}  Qxc5 {[%clk 0:02:08]} 11. Qxc5 {[%clk 0:01:56]}  Nxc5 {[%clk 0:02:01]} 12. a3 {[%clk 0:01:53]}  Bxc3 {[%clk 0:01:53]} 13. Bxc3 {[%clk 0:01:54]}  O-O {[%clk 0:01:49]} 14. e3 {[%clk 0:01:48]}  a5 {[%clk 0:01:35]} 15. Bxf6 {[%clk 0:01:38]}  gxf6 {[%clk 0:01:34]} 16. Bb5 {[%clk 0:01:38]}  b6 {[%clk 0:01:30]} 17. Rd6 {[%clk 0:01:27]}  Rb8 {[%clk 0:01:08]} 18. Nd2 {[%clk 0:01:00]}  Bb7 {[%clk 0:00:41]} 19. Rxb6 {[%clk 0:00:44]}  Bd5 {[%clk 0:00:41]} 20. Rxb8 {[%clk 0:00:38]}  Rxb8 {[%clk 0:00:42]} 21. a4 {[%clk 0:00:36]}  Kf8 {[%clk 0:00:33]} 22. f3 {[%clk 0:00:33]}  e5 {[%clk 0:00:26]} 23. Ke2 {[%clk 0:00:30]}  Ke7 {[%clk 0:00:24]} 24. Rc1 {[%clk 0:00:27]}  Kd6 {[%clk 0:00:23]} 25. Nc4+ {[%clk 0:00:23]}  Bxc4+ {[%clk 0:00:22]} 26. Rxc4 {[%clk 0:00:23]}  Ne6 {[%clk 0:00:18]} 27. Rh4 {[%clk 0:00:18]}  Nc7 {[%clk 0:00:16]} 28. Rxh6 {[%clk 0:00:15]}  Nxb5 {[%clk 0:00:15]} 29. axb5 {[%clk 0:00:15]}  Rxb5 {[%clk 0:00:15]} 30. Rxf6+ {[%clk 0:00:11]}  Ke7 {[%clk 0:00:14]} 31. Ra6 {[%clk 0:00:09]}  Rxb2+ {[%clk 0:00:14]} 32. Kf1 {[%clk 0:00:09]}  Ra2 {[%clk 0:00:14]} 33. h4 {[%clk 0:00:09]}  a4 {[%clk 0:00:12]} 34. h5 {[%clk 0:00:09]}  Kf8 {[%clk 0:00:12]} 35. h6 {[%clk 0:00:07]}  Kg8 {[%clk 0:00:12]} 36. Ra5 {[%clk 0:00:04]}  f6 {[%clk 0:00:08]} 37. Ra6 {[%clk 0:00:04]}  a3 {[%clk 0:00:06]} 38. Rxf6 {[%clk 0:00:03]}  Rb2 {[%clk 0:00:07]} 0-1


[Site "https://www.chess.com"]

[Event "Titled Tuesday Blitz March 15 Early 2022"]
[White "Shevchenko, Kirill"]
[Black "Bortnyk, Olexandr"]
[WhiteFideId "14129574"]
[BlackFideId "14120828"]
[WhiteElo "2977"]
[BlackElo "3040"]
[Result "1-0"]
[Round "05"]
[TimeControl "180+1"]
[Date "2022.03.15"]
[WhiteClock "0:00:09"]
[BlackClock "0:00:01"]

1. c4 {[%clk 0:02:59]}  d6 {[%clk 0:02:58]} 2. Nc3 {[%clk 0:02:59]}  e5 {[%clk 0:02:57]} 3. g3 {[%clk 0:02:57]}  g6 {[%clk 0:02:56]} 4. Bg2 {[%clk 0:02:57]}  Bg7 {[%clk 0:02:57]} 5. d3 {[%clk 0:02:54]}  Nc6 {[%clk 0:02:56]} 6. e4 {[%clk 0:02:52]}  Nge7 {[%clk 0:02:50]} 7. Nge2 {[%clk 0:02:52]}  h5 {[%clk 0:02:48]} 8. h3 {[%clk 0:02:44]}  Bd7 {[%clk 0:02:41]} 9. Nd5 {[%clk 0:02:35]}  Nxd5 {[%clk 0:02:35]} 10. cxd5 {[%clk 0:01:55]}  Ne7 {[%clk 0:02:36]} 11. O-O {[%clk 0:01:55]}  c6 {[%clk 0:02:35]} 12. d4 {[%clk 0:01:56]}  exd4 {[%clk 0:02:26]} 13. Nxd4 {[%clk 0:01:48]}  cxd5 {[%clk 0:02:26]} 14. Bf4 {[%clk 0:01:37]}  Qb6 {[%clk 0:02:20]} 15. Be3 {[%clk 0:01:30]}  Qa6 {[%clk 0:02:06]} 16. Bg5 {[%clk 0:01:14]}  dxe4 {[%clk 0:01:38]} 17. Bxe4 {[%clk 0:01:14]}  Nc8 {[%clk 0:01:14]} 18. Qf3 {[%clk 0:00:54]}  Bxd4 {[%clk 0:00:46]} 19. Bxb7 {[%clk 0:00:52]}  Qb5 {[%clk 0:00:38]} 20. Rfe1+ {[%clk 0:00:44]}  Kf8 {[%clk 0:00:34]} 21. Bf6 {[%clk 0:00:44]}  Bg4 {[%clk 0:00:18]} 22. hxg4 {[%clk 0:00:29]}  hxg4 {[%clk 0:00:19]} 23. Bc6 {[%clk 0:00:27]}  Bxf2+ {[%clk 0:00:04]} 24. Qxf2 {[%clk 0:00:25]}  Qxc6 {[%clk 0:00:01]} 25. Bxh8 {[%clk 0:00:26]}  Ne7 {[%clk 0:00:02]} 26. Bf6 {[%clk 0:00:23]}  Nf5 {[%clk 0:00:02]} 27. Rac1 {[%clk 0:00:19]}  Qa6 {[%clk 0:00:01]} 28. Qh2 {[%clk 0:00:20]}  Qb6+ {[%clk 0:00:01]} 29. Kf1 {[%clk 0:00:18]}  Qa6+ {[%clk 0:00:02]} 30. Re2 {[%clk 0:00:14]}  Nxg3+ {[%clk 0:00:02]} 31. Qxg3 {[%clk 0:00:14]}  d5 {[%clk 0:00:03]} 32. Qf4 {[%clk 0:00:13]}  Kg8 {[%clk 0:00:03]} 33. Kf2 {[%clk 0:00:11]}  g3+ {[%clk 0:00:03]} 34. Kf3 {[%clk 0:00:11]}  d4 {[%clk 0:00:02]} 35. Rh1 {[%clk 0:00:10]}  Qd3+ {[%clk 0:00:01]} 36. Re3 {[%clk 0:00:09]}  Qxe3+ {[%clk 0:00:01]} 37. Qxe3 {[%clk 0:00:09]} 1-0


[Site "https://www.chess.com"]

[Event "Titled Tuesday Blitz March 15 Early 2022"]
[White "Shuvalova, Polina"]
[Black "Lou, Yiping"]
[WhiteFideId "24171760"]
[BlackFideId "8603928"]
[WhiteElo "2355"]
[BlackElo "2412"]
[Result "0-1"]
[Round "05"]
[TimeControl "180+1"]
[Date "2022.03.15"]
[WhiteClock "0:00:04"]
[BlackClock "0:00:10"]

1. d4 {[%clk 0:03:00]}  Nf6 {[%clk 0:02:36]} 2. Nf3 {[%clk 0:02:59]}  d5 {[%clk 0:02:34]} 3. Bf4 {[%clk 0:02:58]}  e6 {[%clk 0:02:31]} 4. e3 {[%clk 0:02:56]}  c5 {[%clk 0:02:30]} 5. Nbd2 {[%clk 0:02:56]}  Bd6 {[%clk 0:02:29]} 6. dxc5 {[%clk 0:02:53]}  Bxf4 {[%clk 0:02:26]} 7. exf4 {[%clk 0:02:51]}  Qc7 {[%clk 0:02:24]} 8. g3 {[%clk 0:02:51]}  Qxc5 {[%clk 0:02:22]} 9. c3 {[%clk 0:02:49]}  O-O {[%clk 0:02:22]} 10. Bd3 {[%clk 0:02:49]}  b6 {[%clk 0:02:20]} 11. Qe2 {[%clk 0:02:48]}  a5 {[%clk 0:02:19]} 12. Nb3 {[%clk 0:02:43]}  Qc7 {[%clk 0:02:15]} 13. a4 {[%clk 0:02:39]}  Ba6 {[%clk 0:02:15]} 14. O-O {[%clk 0:02:35]}  Bxd3 {[%clk 0:02:13]} 15. Qxd3 {[%clk 0:02:35]}  Nbd7 {[%clk 0:02:13]} 16. Nbd4 {[%clk 0:02:35]}  Nc5 {[%clk 0:02:10]} 17. Qe2 {[%clk 0:02:34]}  Nce4 {[%clk 0:02:10]} 18. Ne5 {[%clk 0:02:32]}  Qc5 {[%clk 0:02:05]} 19. Kg2 {[%clk 0:02:21]}  Rac8 {[%clk 0:01:58]} 20. h4 {[%clk 0:02:17]}  Nd6 {[%clk 0:01:49]} 21. h5 {[%clk 0:02:14]}  Rfe8 {[%clk 0:01:43]} 22. h6 {[%clk 0:02:13]}  g6 {[%clk 0:01:42]} 23. Rfe1 {[%clk 0:02:09]}  Nf5 {[%clk 0:01:36]} 24. Nxf5 {[%clk 0:01:59]}  exf5 {[%clk 0:01:36]} 25. Qf3 {[%clk 0:01:27]}  Ne4 {[%clk 0:01:27]} 26. Rad1 {[%clk 0:01:21]}  f6 {[%clk 0:01:23]} 27. Nd3 {[%clk 0:01:12]}  Qc4 {[%clk 0:01:16]} 28. Qe3 {[%clk 0:01:07]}  Re6 {[%clk 0:01:01]} 29. Qd4 {[%clk 0:00:40]}  Qxd4 {[%clk 0:00:53]} 30. cxd4 {[%clk 0:00:41]}  Kf7 {[%clk 0:00:53]} 31. Re2 {[%clk 0:00:18]}  Rc4 {[%clk 0:00:49]} 32. f3 {[%clk 0:00:16]}  Nd6 {[%clk 0:00:47]} 33. Rxe6 {[%clk 0:00:16]}  Kxe6 {[%clk 0:00:48]} 34. b3 {[%clk 0:00:13]}  Rc2+ {[%clk 0:00:44]} 35. Kf1 {[%clk 0:00:12]}  Nf7 {[%clk 0:00:40]} 36. Rc1 {[%clk 0:00:01]}  Rxc1+ {[%clk 0:00:39]} 37. Nxc1 {[%clk 0:00:02]}  Nxh6 {[%clk 0:00:39]} 38. Ne2 {[%clk 0:00:02]}  Nf7 {[%clk 0:00:36]} 39. Nc3 {[%clk 0:00:03]}  Nd6 {[%clk 0:00:36]} 40. Ke2 {[%clk 0:00:04]}  g5 {[%clk 0:00:36]} 41. Ke3 {[%clk 0:00:04]}  h5 {[%clk 0:00:36]} 42. Ne2 {[%clk 0:00:04]}  b5 {[%clk 0:00:32]} 43. Nc3 {[%clk 0:00:03]}  b4 {[%clk 0:00:32]} 44. Ne2 {[%clk 0:00:03]}  Nc8 {[%clk 0:00:26]} 45. Nc1 {[%clk 0:00:03]}  Ne7 {[%clk 0:00:22]} 46. Nd3 {[%clk 0:00:03]}  Ng6 {[%clk 0:00:21]} 47. fxg5 {[%clk 0:00:02]}  fxg5 {[%clk 0:00:20]} 48. f4 {[%clk 0:00:03]}  gxf4+ {[%clk 0:00:19]} 49. gxf4 {[%clk 0:00:03]}  Ne7 {[%clk 0:00:17]} 50. Nc5+ {[%clk 0:00:03]}  Kf6 {[%clk 0:00:16]} 51. Nb7 {[%clk 0:00:03]}  Nc6 {[%clk 0:00:16]} 52. Nc5 {[%clk 0:00:02]}  h4 {[%clk 0:00:15]} 53. Nd3 {[%clk 0:00:03]}  h3 {[%clk 0:00:12]} 54. Nf2 {[%clk 0:00:02]}  h2 {[%clk 0:00:12]} 55. Nh1 {[%clk 0:00:02]}  Kg6 {[%clk 0:00:12]} 56. Ng3 {[%clk 0:00:01]}  Nd8 {[%clk 0:00:12]} 57. Kd3 {[%clk 0:00:02]}  Ne6 {[%clk 0:00:12]} 58. Ke3 {[%clk 0:00:02]}  Kf6 {[%clk 0:00:12]} 59. Nh5+ {[%clk 0:00:02]}  Kf7 {[%clk 0:00:12]} 60. Ng3 {[%clk 0:00:03]}  Kg6 {[%clk 0:00:12]} 61. Nh1 {[%clk 0:00:02]}  Kh5 {[%clk 0:00:12]} 62. Nf2 {[%clk 0:00:02]}  Kh4 {[%clk 0:00:12]} 63. Kf3 {[%clk 0:00:02]}  Nxd4+ {[%clk 0:00:12]} 64. Kg2 {[%clk 0:00:03]}  Nxb3 {[%clk 0:00:12]} 65. Kxh2 {[%clk 0:00:03]}  Nc5 {[%clk 0:00:13]} 66. Kg2 {[%clk 0:00:03]}  b3 {[%clk 0:00:11]} 67. Nd1 {[%clk 0:00:04]}  Nxa4 {[%clk 0:00:10]} 68. Kf3 {[%clk 0:00:04]}  b2 {[%clk 0:00:11]} 69. Nc3 {[%clk 0:00:04]}  Nxc3 {[%clk 0:00:10]} 0-1


[Site "https://www.chess.com"]

[Event "Titled Tuesday Blitz March 15 Early 2022"]
[White "Silva, Kaua Marques"]
[Black "Christensen, Thomas"]
[WhiteFideId "22701168"]
[BlackFideId "1403532"]
[WhiteElo "2071"]
[BlackElo "2260"]
[Result "0-1"]
[Round "05"]
[TimeControl "180+1"]
[Date "2022.03.15"]
[WhiteClock "0:00:15"]
[BlackClock "0:00:15"]

1. d4 {[%clk 0:02:58]}  Nc6 {[%clk 0:02:58]} 2. d5 {[%clk 0:02:53]}  Ne5 {[%clk 0:02:58]} 3. Nf3 {[%clk 0:02:49]}  Ng6 {[%clk 0:02:55]} 4. h4 {[%clk 0:02:48]}  e5 {[%clk 0:02:54]} 5. h5 {[%clk 0:02:46]}  N6e7 {[%clk 0:02:42]} 6. Nxe5 {[%clk 0:02:43]}  d6 {[%clk 0:02:42]} 7. Nf3 {[%clk 0:02:42]}  Bg4 {[%clk 0:02:41]} 8. Nc3 {[%clk 0:02:40]}  Qd7 {[%clk 0:02:41]} 9. Bf4 {[%clk 0:02:31]}  Nf5 {[%clk 0:02:39]} 10. e4 {[%clk 0:02:29]}  Nfh6 {[%clk 0:02:35]} 11. Be2 {[%clk 0:02:25]}  a6 {[%clk 0:02:30]} 12. Qd4 {[%clk 0:02:22]}  Be7 {[%clk 0:02:26]} 13. Qxg7 {[%clk 0:02:12]}  Bf6 {[%clk 0:02:24]} 14. Bxh6 {[%clk 0:02:12]}  Bxg7 {[%clk 0:02:24]} 15. Bxg7 {[%clk 0:02:13]}  f6 {[%clk 0:02:22]} 16. Bxh8 {[%clk 0:02:02]}  h6 {[%clk 0:02:16]} 17. Nh4 {[%clk 0:01:55]}  O-O-O {[%clk 0:02:07]} 18. Ng6 {[%clk 0:01:48]}  Bxe2 {[%clk 0:02:06]} 19. Kxe2 {[%clk 0:01:46]}  Qf7 {[%clk 0:02:02]} 20. Rh3 {[%clk 0:01:41]}  Ne7 {[%clk 0:02:01]} 21. Nxe7+ {[%clk 0:01:39]}  Qxe7 {[%clk 0:02:00]} 22. Rg3 {[%clk 0:01:34]}  Rxh8 {[%clk 0:01:58]} 23. Rh1 {[%clk 0:01:34]}  f5 {[%clk 0:01:45]} 24. Kd3 {[%clk 0:01:25]}  fxe4+ {[%clk 0:01:27]} 25. Nxe4 {[%clk 0:01:26]}  Qe5 {[%clk 0:01:26]} 26. Nc3 {[%clk 0:01:10]}  Rf8 {[%clk 0:01:21]} 27. Rf1 {[%clk 0:00:37]}  Qxg3+ {[%clk 0:01:07]} 28. fxg3 {[%clk 0:00:38]}  Rxf1 {[%clk 0:01:07]} 29. Ke2 {[%clk 0:00:32]}  Rc1 {[%clk 0:01:06]} 30. g4 {[%clk 0:00:30]}  Rxc2+ {[%clk 0:01:06]} 31. Kf3 {[%clk 0:00:31]}  Kd7 {[%clk 0:00:53]} 32. g5 {[%clk 0:00:30]}  hxg5 {[%clk 0:00:49]} 33. h6 {[%clk 0:00:24]}  Rc1 {[%clk 0:00:47]} 34. Kg4 {[%clk 0:00:19]}  Ke7 {[%clk 0:00:40]} 35. Ne4 {[%clk 0:00:17]}  Kf7 {[%clk 0:00:31]} 36. Kxg5 {[%clk 0:00:17]}  Rc2 {[%clk 0:00:30]} 37. g4 {[%clk 0:00:17]}  Rxb2 {[%clk 0:00:31]} 38. Nc3 {[%clk 0:00:15]}  Rc2 {[%clk 0:00:28]} 39. Nd1 {[%clk 0:00:15]}  Rxa2 {[%clk 0:00:26]} 40. Ne3 {[%clk 0:00:16]}  Re2 {[%clk 0:00:24]} 41. Nf5 {[%clk 0:00:15]}  a5 {[%clk 0:00:20]} 42. Kh5 {[%clk 0:00:15]}  Rh2+ {[%clk 0:00:19]} 43. Nh4 {[%clk 0:00:14]}  a4 {[%clk 0:00:18]} 44. g5 {[%clk 0:00:15]}  Rxh4+ {[%clk 0:00:15]} 45. Kxh4 {[%clk 0:00:15]}  Kg6 {[%clk 0:00:15]} 0-1


[Site "https://www.chess.com"]

[Event "Titled Tuesday Blitz March 15 Early 2022"]
[White "Spitzl, Vinzent"]
[Black "Golsta, Madara"]
[WhiteFideId "12901253"]
[BlackFideId "11607386"]
[WhiteElo "2160"]
[BlackElo "1997"]
[Result "1-0"]
[Round "05"]
[TimeControl "180+1"]
[Date "2022.03.15"]
[WhiteClock "0:01:30"]
[BlackClock "0:01:01"]

1. e4 {[%clk 0:02:50]}  c5 {[%clk 0:02:59]} 2. Nf3 {[%clk 0:02:47]}  d6 {[%clk 0:02:59]} 3. d4 {[%clk 0:02:45]}  cxd4 {[%clk 0:02:59]} 4. Nxd4 {[%clk 0:02:46]}  Nf6 {[%clk 0:03:00]} 5. Nc3 {[%clk 0:02:45]}  g6 {[%clk 0:02:59]} 6. Be3 {[%clk 0:02:45]}  Bg7 {[%clk 0:02:59]} 7. f3 {[%clk 0:02:45]}  Nc6 {[%clk 0:02:59]} 8. Qd2 {[%clk 0:02:45]}  O-O {[%clk 0:02:58]} 9. O-O-O {[%clk 0:02:45]}  d5 {[%clk 0:02:58]} 10. exd5 {[%clk 0:02:45]}  Nxd5 {[%clk 0:02:58]} 11. Nxc6 {[%clk 0:02:46]}  bxc6 {[%clk 0:02:58]} 12. Nxd5 {[%clk 0:02:46]}  cxd5 {[%clk 0:02:58]} 13. Qxd5 {[%clk 0:02:47]}  Qc7 {[%clk 0:02:58]} 14. Qc5 {[%clk 0:02:46]}  Qb8 {[%clk 0:02:54]} 15. b3 {[%clk 0:02:44]}  Bf5 {[%clk 0:02:49]} 16. Bd3 {[%clk 0:02:44]}  Bxd3 {[%clk 0:02:29]} 17. Rxd3 {[%clk 0:02:43]}  a5 {[%clk 0:02:27]} 18. Bd4 {[%clk 0:02:28]}  e5 {[%clk 0:02:24]} 19. Bb2 {[%clk 0:02:24]}  a4 {[%clk 0:02:21]} 20. Rhd1 {[%clk 0:02:16]}  axb3 {[%clk 0:02:06]} 21. axb3 {[%clk 0:02:15]}  Ra2 {[%clk 0:02:02]} 22. Rd7 {[%clk 0:01:51]}  Qa8 {[%clk 0:01:48]} 23. Kb1 {[%clk 0:01:41]}  Rxb2+ {[%clk 0:01:07]} 24. Kxb2 {[%clk 0:01:40]}  e4+ {[%clk 0:01:08]} 25. c3 {[%clk 0:01:39]}  exf3 {[%clk 0:01:03]} 26. gxf3 {[%clk 0:01:34]}  Rc8 {[%clk 0:01:02]} 27. Qxc8+ {[%clk 0:01:30]}  Qxc8 {[%clk 0:01:01]} 28. Rd8+ {[%clk 0:01:30]} 1-0


[Site "https://www.chess.com"]

[Event "Titled Tuesday Blitz March 15 Early 2022"]
[White "Thomas, Anysia"]
[Black "Vlassov, Nikolai"]
[WhiteFideId "670472"]
[BlackFideId "4103360"]
[WhiteElo "2002"]
[BlackElo "2407"]
[Result "0-1"]
[Round "05"]
[TimeControl "180+1"]
[Date "2022.03.15"]
[WhiteClock "0:00:09"]
[BlackClock "0:01:46"]

1. d4 {[%clk 0:02:39]}  Nf6 {[%clk 0:02:59]} 2. c4 {[%clk 0:02:39]}  Nc6 {[%clk 0:02:59]} 3. Nf3 {[%clk 0:02:38]}  e6 {[%clk 0:03:00]} 4. g3 {[%clk 0:02:35]}  Bb4+ {[%clk 0:02:59]} 5. Bd2 {[%clk 0:02:23]}  a5 {[%clk 0:02:59]} 6. Bg2 {[%clk 0:02:23]}  d6 {[%clk 0:02:59]} 7. O-O {[%clk 0:02:23]}  e5 {[%clk 0:02:59]} 8. Bg5 {[%clk 0:02:17]}  exd4 {[%clk 0:02:58]} 9. Nxd4 {[%clk 0:02:12]}  Ne5 {[%clk 0:02:58]} 10. a3 {[%clk 0:01:55]}  Bc5 {[%clk 0:02:58]} 11. Nc3 {[%clk 0:01:56]}  Neg4 {[%clk 0:02:58]} 12. h3 {[%clk 0:01:45]}  h6 {[%clk 0:02:57]} 13. Bxf6 {[%clk 0:01:20]}  Nxf6 {[%clk 0:02:57]} 14. Nd5 {[%clk 0:01:21]}  O-O {[%clk 0:02:54]} 15. Rb1 {[%clk 0:01:17]}  c6 {[%clk 0:02:50]} 16. Ne3 {[%clk 0:01:10]}  Qb6 {[%clk 0:02:41]} 17. Ndf5 {[%clk 0:01:00]}  Bxf5 {[%clk 0:02:37]} 18. Nxf5 {[%clk 0:01:00]}  Rad8 {[%clk 0:02:27]} 19. Qd2 {[%clk 0:00:51]}  d5 {[%clk 0:02:12]} 20. b4 {[%clk 0:00:40]}  axb4 {[%clk 0:02:08]} 21. axb4 {[%clk 0:00:40]}  dxc4 {[%clk 0:02:04]} 22. bxc5 {[%clk 0:00:21]}  Qxb1 {[%clk 0:02:03]} 23. Nxh6+ {[%clk 0:00:20]}  gxh6 {[%clk 0:02:02]} 24. Qxh6 {[%clk 0:00:16]}  Qg6 {[%clk 0:02:02]} 25. Qf4 {[%clk 0:00:15]}  c3 {[%clk 0:02:00]} 26. Bf3 {[%clk 0:00:14]}  c2 {[%clk 0:02:00]} 27. h4 {[%clk 0:00:13]}  Rd1 {[%clk 0:01:59]} 28. h5 {[%clk 0:00:13]}  Nxh5 {[%clk 0:01:48]} 29. Bxh5 {[%clk 0:00:09]}  Qxh5 {[%clk 0:01:47]} 30. g4 {[%clk 0:00:09]}  Rxf1+ {[%clk 0:01:46]} 0-1


[Site "https://www.chess.com"]

[Event "Titled Tuesday Blitz March 15 Early 2022"]
[White "Urbina Perez, Juan Antonio"]
[Black "Bintang, Rasyid A. Hidayat"]
[WhiteFideId "2217368"]
[BlackFideId "7105355"]
[WhiteElo "2192"]
[BlackElo "2348"]
[Result "0-1"]
[Round "05"]
[TimeControl "180+1"]
[Date "2022.03.15"]
[WhiteClock "0:00:20"]
[BlackClock "0:00:12"]

1. e4 {[%clk 0:03:00]}  d5 {[%clk 0:03:00]} 2. exd5 {[%clk 0:02:57]}  Nf6 {[%clk 0:03:00]} 3. Bb5+ {[%clk 0:02:55]}  Bd7 {[%clk 0:03:00]} 4. Bxd7+ {[%clk 0:02:54]}  Qxd7 {[%clk 0:03:00]} 5. Nf3 {[%clk 0:02:55]}  Nxd5 {[%clk 0:02:59]} 6. O-O {[%clk 0:02:55]}  g6 {[%clk 0:02:59]} 7. Nc3 {[%clk 0:02:56]}  Nxc3 {[%clk 0:03:00]} 8. bxc3 {[%clk 0:02:57]}  Bg7 {[%clk 0:03:00]} 9. Rb1 {[%clk 0:02:57]}  b6 {[%clk 0:02:59]} 10. Re1 {[%clk 0:02:58]}  O-O {[%clk 0:02:58]} 11. Qe2 {[%clk 0:02:59]}  e6 {[%clk 0:02:56]} 12. Ba3 {[%clk 0:02:56]}  Rd8 {[%clk 0:02:53]} 13. d4 {[%clk 0:02:52]}  Nc6 {[%clk 0:02:49]} 14. Qe4 {[%clk 0:02:51]}  Na5 {[%clk 0:02:47]} 15. Ne5 {[%clk 0:02:43]}  Qd5 {[%clk 0:02:44]} 16. Qf4 {[%clk 0:02:34]}  Bxe5 {[%clk 0:02:43]} 17. Rxe5 {[%clk 0:02:32]}  Qxa2 {[%clk 0:02:40]} 18. Qc1 {[%clk 0:02:28]}  Qc4 {[%clk 0:02:15]} 19. Be7 {[%clk 0:02:26]}  Nc6 {[%clk 0:02:12]} 20. Bxd8 {[%clk 0:02:09]}  Nxe5 {[%clk 0:02:11]} 21. Bf6 {[%clk 0:02:09]}  Nd7 {[%clk 0:02:10]} 22. Bg5 {[%clk 0:02:05]}  Qxc3 {[%clk 0:02:01]} 23. Rb3 {[%clk 0:02:04]}  Qc4 {[%clk 0:01:52]} 24. h4 {[%clk 0:02:00]}  f6 {[%clk 0:01:47]} 25. Bh6 {[%clk 0:01:58]}  c5 {[%clk 0:01:39]} 26. dxc5 {[%clk 0:01:54]}  Nxc5 {[%clk 0:01:38]} 27. Rf3 {[%clk 0:01:54]}  Ne4 {[%clk 0:01:19]} 28. Qa3 {[%clk 0:01:47]}  Qc5 {[%clk 0:01:09]} 29. Qb3 {[%clk 0:01:40]}  Qd5 {[%clk 0:01:05]} 30. Qa3 {[%clk 0:01:35]}  Qd1+ {[%clk 0:00:52]} 31. Kh2 {[%clk 0:01:34]}  Qd6+ {[%clk 0:00:51]} 32. Qxd6 {[%clk 0:01:34]}  Nxd6 {[%clk 0:00:52]} 33. Rxf6 {[%clk 0:01:35]}  Re8 {[%clk 0:00:47]} 34. h5 {[%clk 0:01:31]}  Nf5 {[%clk 0:00:43]} 35. Bd2 {[%clk 0:01:23]}  gxh5 {[%clk 0:00:36]} 36. f3 {[%clk 0:01:13]}  h4 {[%clk 0:00:33]} 37. Bc3 {[%clk 0:01:07]}  Rc8 {[%clk 0:00:29]} 38. Be5 {[%clk 0:01:05]}  Rxc2 {[%clk 0:00:25]} 39. Rxe6 {[%clk 0:01:03]}  Ne3 {[%clk 0:00:24]} 40. Re7 {[%clk 0:00:56]}  Rxg2+ {[%clk 0:00:21]} 41. Kh3 {[%clk 0:00:56]}  Rg6 {[%clk 0:00:14]} 42. Rxa7 {[%clk 0:00:53]}  Nc4 {[%clk 0:00:12]} 43. Bd4 {[%clk 0:00:49]}  Rg3+ {[%clk 0:00:11]} 44. Kxh4 {[%clk 0:00:47]}  Rxf3 {[%clk 0:00:12]} 45. Rb7 {[%clk 0:00:45]}  Rf4+ {[%clk 0:00:12]} 46. Kg5 {[%clk 0:00:44]}  Rxd4 {[%clk 0:00:13]} 47. Kf6 {[%clk 0:00:45]}  Rd6+ {[%clk 0:00:12]} 48. Ke7 {[%clk 0:00:43]}  Rc6 {[%clk 0:00:11]} 49. Kd7 {[%clk 0:00:40]}  Ne5+ {[%clk 0:00:11]} 50. Ke7 {[%clk 0:00:40]}  h5 {[%clk 0:00:11]} 51. Ra7 {[%clk 0:00:38]}  h4 {[%clk 0:00:11]} 52. Ra4 {[%clk 0:00:38]}  Rh6 {[%clk 0:00:11]} 53. Re4 {[%clk 0:00:34]}  Ng6+ {[%clk 0:00:11]} 54. Kf6 {[%clk 0:00:32]}  Nf8+ {[%clk 0:00:10]} 55. Kg5 {[%clk 0:00:31]}  Rh7 {[%clk 0:00:11]} 56. Kf6 {[%clk 0:00:29]}  h3 {[%clk 0:00:11]} 57. Rg4+ {[%clk 0:00:29]}  Kh8 {[%clk 0:00:11]} 58. Rg1 {[%clk 0:00:29]}  h2 {[%clk 0:00:12]} 59. Rh1 {[%clk 0:00:30]}  Rh3 {[%clk 0:00:12]} 60. Kf7 {[%clk 0:00:30]}  Nh7 {[%clk 0:00:11]} 61. Kg6 {[%clk 0:00:29]}  b5 {[%clk 0:00:12]} 62. Kf5 {[%clk 0:00:28]}  b4 {[%clk 0:00:12]} 63. Kg4 {[%clk 0:00:29]}  Rh6 {[%clk 0:00:12]} 64. Kg3 {[%clk 0:00:26]}  b3 {[%clk 0:00:12]} 65. Kg2 {[%clk 0:00:26]}  b2 {[%clk 0:00:12]} 66. Kf2 {[%clk 0:00:20]}  Nf6 {[%clk 0:00:11]} 67. Kg2 {[%clk 0:00:18]}  Nd5 {[%clk 0:00:11]} 68. Kf2 {[%clk 0:00:18]}  Nc3 {[%clk 0:00:11]} 69. Kg2 {[%clk 0:00:18]}  b1=Q {[%clk 0:00:11]} 70. Rxb1 {[%clk 0:00:19]}  Nxb1 {[%clk 0:00:11]} 71. Kh1 {[%clk 0:00:20]}  Nc3 {[%clk 0:00:10]} 72. Kg2 {[%clk 0:00:20]}  h1=Q+ {[%clk 0:00:11]} 73. Kg3 {[%clk 0:00:21]}  Qh3+ {[%clk 0:00:11]} 74. Kf2 {[%clk 0:00:21]}  Rf6+ {[%clk 0:00:11]} 75. Ke1 {[%clk 0:00:20]}  Qf1+ {[%clk 0:00:11]} 76. Kd2 {[%clk 0:00:21]}  Rf2+ {[%clk 0:00:11]} 77. Kxc3 {[%clk 0:00:20]}  Qg2 {[%clk 0:00:11]} 78. Kd4 {[%clk 0:00:20]}  Qg3 {[%clk 0:00:12]} 0-1


[Site "https://www.chess.com"]